[Event "Israel Team Championship 2025"]
[Site "Israel"]
[Date "2025.01.17"]
[Round "3.12"]
[White "Bitensky, Igor"]
[Black "Huzman, Alexander"]
[Result "1-0"]
[Annotator "TA"]
[ECO "B08"]
[WhiteElo "2360"]
[BlackElo "2531"]
[PlyCount "117"]
[EventDate "2025.01.07"]
[EventType "team-tourn"]
[EventCountry "ISR"]
[SourceTitle "playchess.com"]
[Source "ChessBase"]
[SourceQuality "1"]
[TimeControl "40/5400+30:1800+30"]

{[%evp 14,117,15,10,14,0,14,14,34,20,30,31,36,32,27,28,38,25,17,19,20,17,68,66,78,84,77,63,93,89,89,98,222,92,85,85,93,93,89,84,99,61,62,25,28,25,41,25,29,25,29,29,60,60,96,102,235,235,214,210,350,0,106,0,362,336,357,326,296,135,181,189,190,0,87,92,108,109,390,195,52,44,723,716,899,847,877,1284,1728,976,12845,12846,12850,2375,29946,29939,10113,12818,12685,11421,6103,6079,5124,5117,5106,5102]} 1. e4 {[%emt 1:31:00]} c5 {[%emt 0:00:16]} 2. Nc3 {[%emt 0:00:00]} d6 {[%emt 0:01:53]} 3. d4 {[%emt 0:00:00]} cxd4 {[%emt 0:00:42]} 4. Qxd4 {[%emt 0:00:00]} Nc6 {[%emt 0:00:10]} 5. Qd3 {[%emt 0:00:00]} g6 {[%emt 0:00:50]} 6. Nf3 {[%emt 0:00:00]} Bg7 {[%emt 0:00:53]} 7. Be2 {[%emt 0:00:00]} Nf6 {[%emt 0:00:22]} 8. O-O {[%emt 0:00:00]} O-O {[%emt 0:00:07]} 9. Nd5 {[%emt 0:00:00]} Bg4 {[%emt 0:04:06]} 10. c3 {[%emt 0:00:00]} Rc8 {[%emt 0:09:42]} 11. Bg5 {[%emt 0:00:00]} Nxd5 {[%emt 0:03:55]} 12. exd5 {[%emt 0:00:00]} Ne5 {[%emt 0:00:04]} 13. Nxe5 {[%emt 0:00:00]} Bxe2 {[%emt 0:00:09]} 14. Qxe2 {[%emt 0:00:00]} Bxe5 {[%emt 0:00:05]} 15. Rfe1 {[%emt 0:00:00]} Qd7 {[%emt 0:01:37]} 16. a4 {[%emt 0:00:00]} Rfe8 {[%emt 0:02:18]} 17. Qb5 {[%emt 0:00:00]} Qxb5 {[%emt 0:19:00]} ({Better is} 17... Qg4 $11 18. Be3 b6) 18. axb5 $14 {[%emt 0:00:00]} Rc5 {[%emt 0:00:04][%csl LRb5,LRd5]} 19. f4 {[%emt 0:00:00]} Bg7 {[%emt 0:00:38]} 20. Rxe7 {[%emt 0:00:00] White is more active.} Rxe7 {[%emt 0:00:30]} 21. Bxe7 {[%emt 0:00:00]} Rxb5 {[%emt 0:00:10]} 22. Rxa7 $16 {[%emt 0:00:00][%mdl 4096] Endgame KRB-KRB. White is a pawn up.} h5 {[%emt 0:07:31]} (22... f5 $16 {keeps fighting.}) 23. Bxd6 {[%emt 0:00:00]} (23. Ra8+ $18 {is the precise move to win.} Kh7 24. Bxd6) 23... Rxd5 {[%emt 0:00:31]} 24. Ba3 {[%emt 0:00:00]} b5 {[%emt 0:01:05]} 25. Rb7 {[%emt 0:00:00]} Rd1+ {[%emt 0:07:56]} 26. Kf2 {[%emt 0:00:00]} Ra1 {[%emt 0:00:04][%cal Og7c3]} 27. Rxb5 {[%emt 0:00:00]} Bxc3 $1 {[%emt 0:00:09]} 28. bxc3 {[%emt 0:00:00]} Rxa3 {[%emt 0:00:19] KR-KR. White is a pawn up.} 29. Rc5 {[%emt 0:00:00]} Ra2+ {[%emt 0:04:58]} 30. Kf3 {[%emt 0:00:00]} Rc2 {[%emt 0:00:16]} 31. h4 {[%emt 0:00:00]} Kg7 {[%emt 0:02:28]} 32. Rc6 {[%emt 0:00:00]} Rc1 {[%emt 0:00:41]} 33. c4 {[%emt 0:00:00]} Rc2 {[%emt 0:05:42]} 34. c5 $1 {[%emt 0:01:11]} Rc4 {[%emt 0:06:04]} (34... Kf8 $16) 35. Ke3 $18 {[%emt 0:01:04]} Kf8 {[%emt 0:06:12]} 36. Rc7 {[%emt 0:00:55]} Kg7 {[%emt 0:00:33]} (36... Ke8 $142 37. g3 Kd8 38. Rxf7 Rxc5) 37. Rc6 $2 {[%emt 0:05:09]} (37. g3 $18) 37... Kf8 $1 $16 {[%emt 0:00:08]} 38. Rc7 $2 {[%emt 0:00:03][%mdl 8192]} (38. g3 $1 $16) 38... Kg7 $1 $18 {[%emt 0:00:04]} 39. g3 {[%emt 0:01:33]} Kf6 {[%emt 0:03:49]} 40. Kd3 {[%emt 0:09:35]} Rc1 {[%emt 0:04:00]} 41. Ke4 {[%emt 0:22:44]} (41. Kd4 $18) 41... Ke6 $16 {[%emt 0:31:07]} 42. Rc6+ {[%emt 0:01:05]} Ke7 {[%emt 0:00:59]} 43. Rc7+ {[%emt 0:05:27]} (43. Kd5 $18 {is more deadly.}) 43... Ke6 {[%emt 0:00:17] [#]} 44. Kd4 $1 {[%emt 0:00:00] Hoping for Ra7.} Rg1 {[%emt 0:00:00]} 45. Rc6+ {[%emt 0:00:00]} Kf5 $2 {[%emt 0:00:00][%mdl 8192]} (45... Kd7 $16 46. Rd6+ Ke7) 46. Rd6 {[%emt 0:00:00]} (46. Ra6 $142) 46... Kg4 $18 {[%emt 0:00:00]} 47. Rd5 {[%emt 0:00:00]} Rd1+ $2 {[%emt 0:00:00][%mdl 8192]} (47... f6 $14) 48. Ke5 {[%emt 0:00:00]} Rc1 {[%emt 0:02:58]} 49. Kd6 {[%emt 0:00:00]} Kxg3 {[%emt 0:01:29]} 50. c6 {[%emt 0:00:00]} Kxh4 {[%emt 0:00:55]} 51. Rc5 {[%emt 0:00:00]} Ra1 {[%emt 0:00:29]} 52. c7 {[%emt 0:00:00]} Ra8 {[%emt 0:00:04]} 53. Rb5 {[%emt 0:00:00]} (53. c8=B Kg3 $14) (53. Rg5 $142 Rg8 54. Kd7) 53... Rc8 {[%emt 0:00:42] [#]} 54. Rg5 $1 {[%emt 0:00:00]} (54. Rb8 Rxc7 55. Kxc7 Kg3 $11) 54... Rg8 {[%emt 0:02:38]} 55. Ke7 {[%emt 0:00:00]} Kh3 {[%emt 0:01:52]} 56. Kd7 {[%emt 0:04:26]} (56. Kxf7 Rc8 $11) 56... f6 {[%emt 0:03:49] [#]} 57. Rxg6 $3 {[%emt 0:00:02][%mdl 512]} Rxg6 {[%emt 0:00:06]} 58. c8=Q {[%emt 0:00:04]} (58. c8=B $2 {is the wrong capture.} f5 (58... Kg4 $2 59. Ke6 $19) 59. Kc7 Kg4 $19) 58... Kg3 {[%emt 0:00:23]} 59. f5 {[%emt 0:01:13]} 1-0

[Event "Israel Team Championship 2025"]
[Site "Israel"]
[Date "2025.01.17"]
[Round "3.13"]
[White "Rozentalis, Eduardas"]
[Black "Romanov, Evgeny"]
[Result "1/2-1/2"]
[Annotator "TA"]
[ECO "C07"]
[WhiteElo "2485"]
[BlackElo "2590"]
[PlyCount "64"]
[EventDate "2025.01.07"]
[EventType "team-tourn"]
[EventCountry "ISR"]
[SourceTitle "playchess.com"]
[Source "ChessBase"]
[SourceQuality "1"]
[TimeControl "40/5400+30:1800+30"]

{[%evp 10,64,37,28,10,11,14,12,24,8,24,4,0,12,6,0,0,8,0,0,0,0,15,0,0,0,0,0,0,0,0,0,0,0,0,0,0,0,0,0,0,0,0,0,9,0,0,0,0,0,0,0,0,0,0,0,0]} 1. e4 {[%emt 0:00:27]} e6 {[%emt 0:03:59]} 2. d4 {[%emt 0:00:37]} d5 {[%emt 0:00:10]} 3. Nd2 {[%emt 0:00:24]} c5 {[%emt 0:00:20]} 4. Ngf3 {[%emt 0:00:31]} cxd4 {[%emt 0:00:14]} 5. exd5 {[%emt 0:00:25]} Qxd5 {[%emt 0:00:09]} 6. Bc4 {[%emt 0:00:07]} Qd7 {[%emt 0:00:37]} 7. O-O {[%emt 0:01:02]} Nc6 {[%emt 0:00:13]} 8. Nb3 {[%emt 0:00:27][%cal Rb3d4]} a6 {[%emt 0:01:05]} 9. a4 {[%emt 0:02:50][%cal Od1e2]} Nf6 {[%emt 0:03:20]} 10. Bf4 {[%emt 0:04:53][%cal Rb3d4]} Bd6 {[%emt 0:10:43]} 11. Bxd6 {[%emt 0:01:19]} Qxd6 {[%emt 0:00:07]} 12. Nbxd4 {[%emt 0:02:00]} O-O {[%emt 0:05:51]} 13. Nxc6 {[%emt 0:02:52]} Qxc6 {[%emt 0:00:13]} 14. Ne5 {[%emt 0:01:07]} Qc7 {[%emt 0:00:27]} 15. Qe2 {[%emt 0:04:20]} b6 {[%emt 0:03:55]} 16. Rfe1 {[%emt 0:10:16]} Bb7 {[%emt 0:01:02]} 17. Rad1 {[%emt 0:03:43]} Be4 {[%emt 0:13:03]} 18. Bd3 {[%emt 0:14:22]} Qxe5 {[%emt 0:03:21]} 19. Bxe4 {[%emt 0:00:41]} Nxe4 {[%emt 0:00:09]} 20. Qxe4 {[%emt 0:00:03]} Qxb2 {[%emt 0:00:10]} (20... Qxe4 {simplifies} 21. Rxe4 Rfd8 22. Rxd8+ Rxd8 23. Kf1 Rc8) 21. Rb1 {[%emt 0:00:13][%cal Bd1b1,Bb1b6,Bb6c6][%mdl 32]} Qc3 {[%emt 0:01:18]} 22. Rxb6 {[%emt 0:00:27]} Qa5 {[%emt 0:01:39]} 23. Reb1 {[%emt 0:02:40]} Rac8 {[%emt 0:02:52]} 24. g3 {[%emt 0:02:00]} g6 {[%emt 0:03:06]} 25. Rc6 {[%emt 0:05:54]} Rb8 {[%emt 0:05:18]} 26. Rb3 {[%emt 0:02:57]} Rbd8 {[%emt 0:02:35]} 27. Rd3 {[%emt 0:05:51]} Rxd3 {[%emt 0:01:14]} 28. cxd3 {[%emt 0:01:03]} Rb8 {[%emt 0:06:45]} 29. Kg2 {[%emt 0:02:15]} Rd8 {[%emt 0:10:02]} 30. Qc4 {[%emt 0:01:58]} Qd5+ {[%emt 0:03:13]} 31. Qxd5 {[%emt 0:00:13]} Rxd5 {[%emt 0:00:04]} 32. Rxa6 {[%emt 0:00:22]} Rxd3 {[%emt 0:00:07]} 1/2-1/2

[Event "Israel Team Championship 2025"]
[Site "Israel"]
[Date "2025.01.17"]
[Round "3.14"]
[White "Greenfeld, Alon"]
[Black "Gershon, Alik"]
[Result "1-0"]
[Annotator "TA"]
[ECO "E15"]
[WhiteElo "2469"]
[BlackElo "2433"]
[PlyCount "79"]
[EventDate "2025.01.07"]
[EventType "team-tourn"]
[EventCountry "ISR"]
[SourceTitle "playchess.com"]
[Source "ChessBase"]
[SourceQuality "1"]
[TimeControl "40/5400+30:1800+30"]

{[%evp 17,79,35,57,49,36,46,63,-13,-21,-6,37,33,166,67,64,55,58,62,75,-16,84,81,166,179,165,166,256,248,256,252,239,81,669,688,509,484,456,197,377,377,377,377,377,366,416,387,398,383,385,352,456,440,406,393,405,364,563,567,562,547,547,547,547,535]} 1. d4 {[%emt 0:04:16]} Nf6 {[%emt 0:00:08]} 2. Nf3 {[%emt 0:01:11]} e6 {[%emt 0:00:37]} 3. c4 {[%emt 0:00:16]} b6 {[%emt 0:01:00]} 4. g3 {[%emt 0:03:34]} Ba6 {[%emt 0:02:24]} 5. Qc2 {[%emt 0:00:12]} c5 {[%emt 0:06:12]} 6. d5 {[%emt 0:02:09]} exd5 {[%emt 0:00:06]} 7. cxd5 {[%emt 0:00:07]} d6 {[%emt 0:00:09]} 8. Nc3 {[%emt 0:04:23]} g6 {[%emt 0:06:29]} 9. Qa4+ {[%emt 0:10:24]} Qd7 {[%emt 0:05:44]} 10. Qh4 {[%emt 0:00:33]} Qe7 {[%emt 0:05:05]} 11. Bh3 {[%emt 0:12:07]} b5 {[%emt 0:10:02]} 12. a4 {[%emt 0:04:32]} (12. b4 $1 $14) 12... b4 $11 {[%emt 0:02:54]} 13. Nb5 {[%emt 0:00:05]} Nxd5 {[%emt 0:04:09]} 14. O-O {[%emt 0:53:41]} (14. Qxe7+ {simplifies} Bxe7 15. Nd2 Nd7 16. Bg2) 14... Nd7 {[%emt 0:15:34]} (14... Qxh4 $14 15. Nxh4 Bb7) 15. Rd1 {[%emt 0:00:00]} (15. Bg5 $6 f6 $14) (15. Qc4 $1 $18 {[%cal Rc4d5]} Bb7 16. e4) 15... Qxh4 {[%emt 0:04:04]} 16. Nxh4 {[%emt 0:00:00]} Bxb5 {[%emt 0:00:06]} 17. axb5 {[%emt 0:00:00]} Nc7 {[%emt 0:00:03]} 18. Ra5 {[%emt 0:00:00]} (18. Bg2 $16 Rb8 19. Bc6 (19. Rxa7 Nxb5 20. Ra5 Bg7 $15) 19... Nxb5 20. Ra5) 18... Ne5 {[%emt 0:13:19]} (18... Nb6 $1 $11 {remains equal.}) 19. Bg2 {[%emt 0:00:00]} d5 {[%emt 0:00:53]} (19... O-O-O $16) 20. Bf4 $18 {[%emt 0:00:00]} (20. Bxd5 $6 O-O-O 21. e4 (21. Bb7+ Kxb7 22. Rxd8 Bg7 $15) 21... Kb8 $14 (21... Nxd5 22. Rxa7 Rd7 23. Rxd7 $11)) 20... Bg7 {[%emt 0:00:49] [#]} 21. Nf3 $1 {[%emt 0:00:00]} (21. Bxd5 O-O-O 22. e4 Nxd5 23. exd5 Kb7 $11) 21... f6 {[%emt 0:07:37]} (21... Nc4) 22. Nxe5 $18 {[%emt 0:00:00]} (22. Ne1 $6 g5 $18) 22... fxe5 {[%emt 0:00:05]} 23. Be3 {[%emt 0:00:00]} c4 {[%emt 0:08:05]} 24. Rda1 $2 {[%emt 0:00:00]} (24. Rxa7 Rxa7 25. Bxa7 Nxb5 $14) (24. Bxd5 O-O-O 25. Rxa7 Kb8 (25... Nxd5 26. Bg5 $16) 26. Rb7+ Kc8 $11) (24. b6 $18 {is more deadly.} axb6 25. Rxa8+ Nxa8 26. Bxd5) 24... Rc8 $2 {[%emt 0:06:21][%mdl 8192]} (24... e4 $16) 25. Rxa7 $18 {[%emt 0:00:00]} d4 {[%emt 0:00:09]} 26. b6 {[%emt 0:00:00]} dxe3 {[%emt 0:00:14]} 27. Rxc7 {[%emt 0:00:00]} (27. bxc7 exf2+ 28. Kf1 (28. Kxf2 Rf8+ 29. Kg1 Rf7 $14) 28... e4 $18) (27. Bh3 $142 exf2+ 28. Kxf2 (28. Kf1 Nd5 $18)) 27... exf2+ $2 {[%emt 0:00:04]} (27... Rxc7 28. bxc7 Kd7) 28. Kf1 $18 {[%emt 0:00:00]} (28. Kxf2 Rxc7 29. bxc7 Kd7 30. c8=B+ (30. Bh3+ Kxc7 31. Ra7+ Kb6 $18) 30... Kxc8 31. Ra8+ Kc7 32. Ra7+ Kb6 33. Rxg7 Kb5 $18) 28... Rxc7 {[%emt 0:01:20]} 29. bxc7 {[%emt 0:00:05]} Kd7 {[%emt 0:00:17]} 30. c8=Q+ {[%emt 0:03:07]} (30. Kxf2 c3 31. bxc3 bxc3 $16) 30... Kxc8 {[%emt 0:00:04] [#]} 31. Ra8+ $1 {[%emt 0:00:08]} Kc7 {[%emt 0:00:56]} 32. Ra7+ {[%emt 0:00:02]} (32. Kxf2 Rxa8 33. Bxa8 Kb6 $17) 32... Kb6 {[%emt 0:00:32]} 33. Rxg7 {[%emt 0:00:03]} Rd8 {[%emt 0:00:04]} 34. Rb7+ {[%emt 0:01:40]} (34. Kxf2 Rd2 35. Rb7+ (35. Rxh7 Rxb2 36. Be4 b3 $18) 35... Kc5 36. Rc7+ (36. Rxh7 Rxb2 37. h4 Rd2 $18) 36... Kb5 $18) 34... Kc5 {[%emt 0:00:05]} 35. Rc7+ {[%emt 0:00:44]} (35. Kxf2 Rd2 36. Rc7+ (36. Rxh7 Rxb2 37. Be4 g5 $18) 36... Kb5) 35... Kb5 {[%emt 0:01:42]} 36. Bh3 {[%emt 0:00:34]} (36. Rxh7 Rd2 37. Be4 (37. Kxf2 Rxb2 38. Rb7+ Kc5 $18) 37... Rxb2 38. Bxg6 (38. Kxf2 b3 $18) 38... b3 39. Kxf2 c3 $18) 36... c3 {[%emt 0:00:35]} (36... Rd6 {is a better defense.} 37. Kxf2 (37. Rxh7 Kb6 $18) 37... Rd2) 37. bxc3 $18 {[%emt 0:00:35]} (37. Rxh7 $2 cxb2 38. Rb7+ Kc5 (38... Ka5 $2 39. Kxf2 b1=Q 40. Ra7+ Kb6 41. Rf7 $19) 39. Kxf2 Rf8+ (39... b1=B 40. Ke3 $15) (39... b1=N 40. Be6 $11) (39... b1=Q $2 40. Rc7+ Kb6 41. Rf7 $19) (39... b1=R $2 40. Be6 $19) 40. Ke3 b1=Q $19 (40... b1=B 41. Re7 $11)) 37... b3 {[%emt 0:00:03]} 38. Rb7+ {[%emt 0:01:21]} Kc4 {[%emt 0:00:20]} 39. Be6+ {[%emt 0:00:21]} ({Weaker is} 39. Rxh7 b2 40. Be6+ (40. Kxf2 $2 {too greedy.} b1=Q $19) (40. Rb7 Rd1+ 41. Kxf2 b1=Q $11) 40... Kxc3 41. Rc7+ (41. Kxf2 $2 b1=Q $19) (41. Rb7 Rd1+ 42. Kxf2 b1=Q $11) 41... Kb4 42. Rb7+ (42. Kxf2 Rd1 $16) 42... Kc3 $16) 39... Kxc3 {[%emt 0:00:02]} 40. Rxb3+ {[%emt 0:00:11]} (40. Kxf2 b2 $16) 1-0

[Event "Israel Team Championship 2025"]
[Site "Israel"]
[Date "2025.01.17"]
[Round "3.15"]
[White "Haimovich, Tal"]
[Black "Dvoirys, Semen I."]
[Result "1/2-1/2"]
[Annotator "TA"]
[ECO "B46"]
[WhiteElo "2322"]
[BlackElo "2462"]
[PlyCount "108"]
[EventDate "2025.01.07"]
[EventType "team-tourn"]
[EventCountry "ISR"]
[SourceTitle "playchess.com"]
[Source "ChessBase"]
[SourceQuality "1"]
[TimeControl "40/5400+30:1800+30"]

{[%evp 10,108,28,22,68,22,59,55,70,62,74,33,62,63,47,58,56,62,56,45,50,56,59,37,158,72,165,163,160,168,252,231,260,247,245,8,1,10,10,11,10,11,20,2,1,-14,-16,-22,-25,-35,-35,-57,-64,-98,-76,-72,-61,-70,-78,-56,-56,-65,-39,-142,-145,-152,-107,-93,-85,-92,-85,-143,-131,-132,-132,-152,-129,-143,-151,-151,0,-136,-145,-164,-152,-151,-145,-154,-138,-166,-8,-8,-4,-4,-4,-4,-4,-4,-4,-4,-4]} 1. e4 {[%emt 0:02:10]} c5 {[%emt 0:00:05]} 2. Nf3 {[%emt 0:00:46]} Nc6 {[%emt 0:00:56]} 3. Nc3 {[%emt 0:05:07]} e6 {[%emt 1:30:59]} 4. d4 {[%emt 1:24:27]} cxd4 {[%emt 0:00:00]} 5. Nxd4 {[%emt 0:00:00]} a6 {[%emt 0:00:00]} 6. g3 {[%emt 0:00:00]} Qb6 {[%emt 0:00:00]} (6... Qc7 $11) 7. Nxc6 {[%emt 0:00:00]} (7. Nb3 $14) 7... bxc6 {[%emt 0:00:00]} 8. Bg2 {[%emt 0:00:00]} d5 {[%emt 0:00:00]} 9. O-O {[%emt 0:00:00][%cal Re4d5]} Nf6 {[%emt 0:00:00]} 10. Re1 {[%emt 0:00:00][%cal Re4d5]} Bb7 {[%emt 0:00:00]} 11. Be3 {[%emt 0:00:00]} Qc7 {[%emt 0:00:00]} 12. Bf4 {[%emt 0:00:00]} Qd8 {[%emt 0:00:00]} 13. Bg5 {[%emt 0:00:00]} Be7 {[%emt 0:00:00]} 14. Bxf6 {[%emt 0:00:00]} gxf6 {[%emt 0:00:00]} 15. Qh5 {[%emt 0:00:00]} O-O {[%emt 0:00:00]} 16. Rad1 {[%emt 0:00:00][%cal Re4d5]} Kh8 {[%emt 0:00:00]} (16... Qc7 $14) 17. Rd3 {[%emt 0:00:00] White has more active pieces.} (17. exd5 $142 $1 cxd5 18. Ne2) 17... Qc7 {[%emt 0:00:00] [#]} (17... Ra7 $16) 18. exd5 $1 $18 {[%emt 0:00:00]} cxd5 {[%emt 0:00:00] [#]} 19. g4 $1 {[%emt 0:00:00] White wants to mate with Rh3.} Qf4 {[%emt 0:00:00] [#]} (19... Rg8 $142) 20. Bxd5 $1 {[%emt 0:00:00][%mdl 512]} Rab8 {[%emt 0:00:00] [#] Black is weak on the light squares} (20... Bc5 $2 21. Rf3 (21. Bxb7 $2 Qxf2+ 22. Kh1 Qxe1+ 23. Kg2 f5 $19) 21... Qg5 22. Qxg5 (22. Bxb7 Qxh5 23. gxh5 Ra7 $18) 22... fxg5 23. Bxb7 $18) (20... Bxd5 21. Nxd5) 21. Rh3 $1 {[%emt 0:00:00]} h6 {[%emt 0:00:00]} 22. Qxh6+ $2 {[%emt 0:00:00]} (22. Bxe6 $18 Bc5 (22... fxe6 $2 23. Qg6 $18) 23. Qxc5 (23. Bxf7 $2 Qxf2#) (23. Qxh6+ Qxh6 24. Rxh6+ Kg7 $16)) 22... Qxh6 $11 {[%emt 0:00:00]} 23. Rxh6+ {[%emt 0:00:00]} Kg7 {[%emt 0:00:00]} 24. Rh5 {[%emt 0:00:00]} Bxd5 {[%emt 0:00:00]} 25. Nxd5 {[%emt 0:00:00]} Bd8 {[%emt 0:00:00]} 26. Ne3 {[%emt 0:04:52]} Rxb2 {[%emt 0:00:00]} 27. a3 {[%emt 0:00:13]} Bb6 {[%emt 0:00:00][%mdl 1024] Black has compensation.} 28. Re2 {[%emt 0:01:33]} Rc8 $36 {[%emt 0:00:00][%mdl 2048] Prevents Nc4. Black fights for an advantage.} 29. Rh3 {[%emt 0:00:50]} Ra2 {[%emt 0:00:00][%cal Ob6c5]} 30. Kg2 {[%emt 0:00:28]} Bc5 {[%emt 0:00:00]} (30... Rxa3 31. Nf5+ exf5 32. Rxa3 $18) 31. Rf3 {[%emt 0:01:58]} Bxa3 {[%emt 0:00:00]} 32. Rf4 {[%emt 0:00:18]} Bc1 {[%emt 0:00:00]} 33. Rc4 {[%emt 0:00:21]} Rxc4 {[%emt 0:00:00]} 34. Nxc4 $15 {[%emt 0:00:01][%mdl 4096] Endgame KRB-KRN} a5 {[%emt 0:00:00]} 35. Re1 $1 {[%emt 0:01:29]} Bf4 {[%emt 0:00:00][%cal Oa5a4]} 36. Rd1 {[%emt 0:01:36]} (36. Re4 $15 Bb8 37. Ne3) 36... a4 $17 {[%emt 0:00:00]} 37. c3 {[%emt 0:00:12]} Bb8 {[%emt 0:00:00]} 38. Rd7 {[%emt 0:01:12] Dodges Ba7} a3 {[%emt 0:03:12]} 39. h4 {[%emt 0:01:20]} Ra1 {[%emt 0:00:35]} 40. Rd2 {[%emt 0:00:56]} ({White should try} 40. Rb7 a2 41. Rxb8 Rg1+ 42. Kxg1 a1=Q+ (42... a1=B $2 43. Nb2 $18) 43. Kg2) 40... Ba7 {[%emt 0:01:32]} 41. Rc2 {[%emt 0:08:17]} Bc5 {[%emt 0:00:36]} 42. Nd2 {[%emt 0:02:06] aiming for Nb3.} Re1 {[%emt 0:08:13]} 43. Nb3 {[%emt 0:01:34]} Bd6 {[%emt 0:01:58]} 44. Nd2 {[%emt 0:03:57] Prevents Re4} Bc5 {[%emt 0:05:33]} 45. Nb3 {[%emt 0:02:46]} Be7 {[%emt 0:00:10]} 46. Nd2 {[%emt 0:03:26] Wards off Rb1} f5 {[%emt 0:05:54]} 47. gxf5 {[%emt 0:02:25]} exf5 {[%emt 0:00:11][%cal Og7f6]} (47... Bxh4 48. Nf3 Re4 49. fxe6 $17) 48. Nc4 {[%emt 0:02:17]} Kg6 {[%emt 0:02:30]} (48... Bxh4 49. Nxa3 Be7 50. Nb5 $11) 49. Ne3 {[%emt 0:03:11]} Bxh4 $2 {[%emt 0:01:52]} (49... Rb1 $19 {[%cal Ob1b2] Threatens to win with ...Rb2!.} 50. Nd5 Bd6 (50... Bxh4 51. Ra2 $17)) 50. Ra2 $1 $11 {[%emt 0:00:35]} Be7 {[%emt 0:00:09]} 51. Nd5 $1 {[%emt 0:00:11]} ({But not} 51. Nc4 $2 Re4 52. Nb6 (52. Nxa3 $2 {is the wrong capture.} Rg4+ 53. Kf1 Ra4 $19) 52... Bd6 $19) 51... Bd6 {[%emt 0:05:42]} (51... Bf8 $5 52. Nb4 $8 Bxb4 53. cxb4 Rb1 $15) 52. Nb4 {[%emt 0:00:22]} Re4 {[%emt 0:00:40]} 53. Rxa3 {[%emt 0:00:19]} Bxb4 {[%emt 0:00:07]} 54. cxb4 {[%emt 0:00:03]} Rxb4 {[%emt 0:00:03]} 1/2-1/2

[Event "Israel Team Championship 2025"]
[Site "Israel"]
[Date "2025.01.17"]
[Round "3.16"]
[White "Pasman, Michael"]
[Black "Ben Artzi, Ido"]
[Result "0-1"]
[Annotator "TA"]
[ECO "E05"]
[WhiteElo "2347"]
[BlackElo "2334"]
[PlyCount "82"]
[EventDate "2025.01.07"]
[EventType "team-tourn"]
[EventCountry "ISR"]
[SourceTitle "playchess.com"]
[Source "ChessBase"]
[SourceQuality "1"]
[TimeControl "40/5400+30:1800+30"]

{[%evp 27,82,-18,-11,-25,10,0,16,10,8,0,0,-22,-2,-22,-23,-291,-285,-275,-286,-284,-290,-279,-284,-334,-331,-387,-416,-429,-428,-481,-496,-479,-442,-420,-366,-340,-351,-329,-324,-352,-349,-649,-646,-632,-593,-774,-710,-1644,-1353,-29987,-29988,-29988,-29989,-29989,-29990,-29990,-29981]} 1. Nf3 {[%emt 0:00:03]} Nf6 {[%emt 0:03:48]} 2. c4 {[%emt 0:00:09]} e6 {[%emt 0:01:16]} 3. g3 {[%emt 0:00:13]} d5 {[%emt 0:00:09]} 4. Bg2 {[%emt 0:00:05]} Be7 {[%emt 0:00:42]} 5. O-O {[%emt 0:00:13]} O-O {[%emt 0:00:05]} 6. d4 {[%emt 0:00:18]} dxc4 {[%emt 0:03:12]} 7. Qc2 {[%emt 0:00:27]} a6 {[%emt 0:00:51]} 8. Qxc4 {[%emt 0:00:08]} b5 {[%emt 0:00:08]} 9. Qc2 {[%emt 0:00:08]} Bb7 {[%emt 0:00:07]} 10. Bg5 {[%emt 0:02:28]} Nbd7 {[%emt 0:00:28]} 11. Bxf6 {[%emt 0:00:41]} Nxf6 {[%emt 0:00:38]} 12. Nbd2 {[%emt 0:00:04]} Rc8 {[%emt 0:01:31]} 13. Nb3 {[%emt 0:00:13]} Be4 {[%emt 0:03:33]} 14. Qc1 {[%emt 0:00:11]} c5 {[%emt 0:09:01]} 15. dxc5 {[%emt 0:17:01]} Qc7 {[%emt 0:04:20]} 16. Rd1 {[%emt 0:00:49]} Nd7 {[%emt 0:24:08][%cal Rd7c5]} 17. Qe3 {[%emt 0:16:58]} Bc2 {[%emt 0:01:54]} 18. Rd2 {[%emt 0:23:27]} Bxb3 {[%emt 0:00:12]} 19. Qxb3 {[%emt 0:00:08][%cal Oc5c6]} Nxc5 {[%emt 0:02:14]} 20. Qe3 {[%emt 0:00:10]} Na4 {[%emt 0:04:00]} 21. Ne5 $2 {[%emt 0:23:14][%mdl 8192] [#]} (21. Ne1 $11 {and White is okay.}) 21... Bc5 $1 $19 {[%emt 0:07:29]} 22. Qe4 {[%emt 0:09:24] [#]} f5 $1 {[%emt 0:00:22]} 23. Qf4 {[%emt 0:04:13]} Bd6 {[%emt 0:00:18]} 24. Rxd6 {[%emt 0:00:41]} Qxd6 {[%emt 0:00:02]} 25. Nd3 {[%emt 0:00:18]} Qxf4 {[%emt 0:00:55]} 26. gxf4 {[%emt 0:01:00]} Rc2 {[%emt 0:00:39][%csl LRb2,LRe2]} 27. b3 {[%emt 0:00:43]} Nc3 {[%emt 0:00:15]} 28. Nb4 {[%emt 0:00:12]} Nxe2+ {[%emt 0:01:22]} 29. Kf1 {[%emt 0:00:03]} Rd2 {[%emt 0:00:41]} 30. Ke1 {[%emt 0:00:20]} Rfd8 {[%emt 0:05:15]} 31. Bd5 {[%emt 0:00:04]} Rb2 {[%emt 0:11:51]} (31... R2xd5 32. Nxd5 Nd4 33. Ne3) 32. Nd3 {[%emt 0:00:59]} ({Much weaker is} 32. Bxe6+ Kf8 33. Bxf5 Nxf4 $19) 32... Rc2 {[%emt 0:00:15]} 33. Bxe6+ {[%emt 0:01:16]} Kf8 {[%emt 0:01:26]} 34. Nb4 $2 {[%emt 0:00:33]} (34. Bxf5 g6 35. Kd1 Rxa2 (35... Rb2 $2 36. Ke1 $19) 36. Rxa2 Nc3+ (36... gxf5 $2 {perishes.} 37. Kxe2 Re8+ 38. Kf1 $18) 37. Kc2 Nxa2 38. Be4) 34... Rb2 {[%emt 0:01:32]} 35. Bxf5 {[%emt 0:00:32]} Nxf4 {[%emt 0:01:45] ...g6 is the strong threat.} 36. Rc1 {[%emt 0:00:31]} a5 {[%emt 0:05:20]} 37. Nc6 {[%emt 0:00:28]} Rdd2 {[%emt 0:01:16] ( -> ...Re2+)} 38. Nxa5 {[%emt 0:00:34]} Re2+ {[%emt 0:00:17]} 39. Kf1 {[%emt 0:00:01]} Rxf2+ {[%emt 0:00:07]} 40. Kg1 {[%emt 0:00:13]} Rg2+ {[%emt 0:00:12]} 41. Kf1 {[%emt 0:30:35]} Rxh2 {[%emt 0:30:45]} 0-1